bitfinex/quotes_ETHUSD_20250219
["timestamp","ask_amount","ask_price","bid_price","bid_amount"]
[1739992673062,4.45414,2720.4,2719.6,3.67693]
[1739992673203,4.45414,2720.4,2719.6,3.67692]
[1739992673407,3.6761,2720.3,2719.6,7.35384]
[1739992673758,0.7782,2720.4,2719.6,4.412294]
[1739992673903,0.7782,2720.4,2719.0,3.8185]
[1739992673904,0.7782,2720.4,2719.8,3.67665]
[1739992674103,0.7782,2720.4,2719.9,3.67652]
[1739992674309,0.7782,2720.4,2719.9,7.35304]
[1739992674550,0.7535,2721.0,2719.7,0.8016]
[1739992674865,3.67532,2720.9,2720.1,3.67623]
[1739992675153,3.67532,2720.9,2720.2,0.367623]
[1739992675154,3.67527,2720.9,2720.2,0.367623]
[1739992675356,0.7535,2721.0,2720.2,0.367623]
[1739992675536,0.7535,2721.0,2720.2,3.367623]
[1739992675705,0.7535,2721.0,2720.7,3.6755]
[1739992675914,0.7535,2721.0,2720.5,3.67574]
[1739992676546,0.7535,2721.0,2720.5,3.67571]
[1739992676852,0.7535,2721.0,2720.5,4.410883]
[1739992677358,3.67532,2720.9,2720.2,3.367623]
[1739992677677,3.67532,2720.9,2720.1,7.3525]
[1739992677678,3.67538,2720.8,2720.1,3.67633]
[1739992677808,3.6755,2720.8,2720.2,3.0]
[1739992678003,3.6755,2720.8,2720.1,3.67633]
[1739992678525,0.7535,2721.0,2720.1,4.711617]
[1739992678720,0.7535,2721.0,2720.3,3.67597]
[1739992679045,4.4287,2721.0,2720.1,8.387757]
[1739992679211,3.67546,2720.8,2720.1,8.387757]
[1739992679408,3.67559,2720.7,2720.1,3.67623]
[1739992679602,3.67546,2720.8,2720.1,3.67623]
[1739992679809,7.35095,2720.8,2720.1,3.67623]
[1739992680008,7.35095,2720.8,2720.1,7.35248]
[1739992680009,3.67546,2720.8,2720.1,7.35248]
[1739992680250,7.35094,2720.8,2720.1,3.67623]
[1739992680558,3.67561,2720.7,2719.8,3.0]
[1739992680712,4.42871,2721.0,2720.3,3.67599]
[1739992681024,3.67535,2720.9,2720.2,3.67611]
[1739992681355,3.67601,2720.4,2719.6,3.97192]
[1739992681505,3.676,2720.4,2719.8,6.67674]
[1739992681838,3.676,2720.4,2719.6,0.295]
[1739992681839,3.67631,2720.2,2719.6,3.67694]
[1739992682006,3.67606,2720.3,2719.6,3.67692]
[1739992682207,4.47738,2720.5,2719.3,3.67731]
[1739992682208,3.67655,2720.0,2719.3,3.67731]
[1739992682422,0.7733,2719.9,2719.3,3.67731]
[1739992682643,3.67686,2719.8,2719.0,3.6778]
[1739992682841,3.67686,2719.8,2718.7,3.67813]
[1739992682842,3.67703,2719.6,2718.8,3.67801]
[1739992683021,0.7733,2719.9,2719.1,3.67761]
[1739992683207,3.67683,2719.8,2719.1,3.67761]
[1739992683406,3.67695,2719.7,2719.0,3.0]
[1739992683807,3.67739,2719.4,2718.5,3.67847]
[1739992684118,3.67742,2719.3,2718.6,3.67829]
[1739992684321,3.67756,2719.2,2718.4,3.67859]
[1739992684528,3.67756,2719.2,2718.4,3.67852]
[1739992684721,4.45032,2719.6,2718.7,3.67815]
[1739992685007,0.7733,2719.6,2719.1,3.6776]
[1739992685213,0.7733,2719.6,2718.9,3.67787]
[1739992685512,0.7733,2719.6,2718.8,3.67804]
[1739992685710,7.35438,2719.5,2718.7,3.67819]
[1739992685943,3.67715,2719.5,2718.7,4.4585602]
[1739992686247,0.71129911,2719.5,2719.1,3.67759]
[1739992686605,0.71129911,2719.5,2719.2,3.67745]
[1739992686833,0.71129911,2719.5,2719.4,3.67728]
[1739992687047,0.71129911,2719.5,2719.4,7.864908]
[1739992687223,9.11e-06,2719.5,2719.4,7.864908]
[1739992687543,0.36476877,2719.7,2719.6,6.67701]
[1739992687544,0.04559609,2719.7,2719.6,6.67701]
[1739992687752,0.04559609,2720.3,2719.9,3.6765]
[1739992688158,0.04559609,2720.3,2719.7,3.67679]
[1739992688322,3.72174609,2720.3,2719.5,3.67705]
[1739992688658,3.72174609,2720.3,2719.6,3.67693]
[1739992688853,3.67615,2720.3,2719.5,4.4930178]
[1739992689028,3.67622,2720.2,2719.6,3.67693]
[1739992689233,0.7983,2720.4,2720.0,3.67645]
[1739992689553,0.7754,2720.8,2720.2,3.67618]
[1739992689725,0.7754,2720.8,2720.2,3.67608]
[1739992689929,0.7754,2720.8,2720.3,3.67606]
[1739992690132,0.7754,2720.8,2720.4,3.67585]
[1739992690339,0.7754,2720.8,2720.6,3.67564]
[1739992690677,0.7754,2720.8,2720.7,3.67552]
[1739992690977,0.7754,2720.8,2720.5,3.67568]
[1739992691267,4.45038,2721.1,2720.5,3.67575]
[1739992691450,4.45038,2721.1,2720.6,3.67561]
[1739992691451,0.7754,2721.1,2720.6,3.67561]
[1739992691623,0.7754,2721.1,2720.4,7.35169]
[1739992691957,0.7754,2721.1,2720.4,3.67584]
[1739992691958,4.45038,2721.1,2720.4,3.67584]
[1739992692155,4.45038,2721.1,2720.4,7.35168]
[1739992692451,4.45038,2721.1,2720.4,4.411008]
[1739992692658,4.45038,2721.1,2720.4,8.086828]
[1739992692864,0.7754,2721.1,2720.5,3.67568]
[1739992693063,0.7754,2721.1,2720.6,3.67564]
[1739992693424,0.7754,2721.1,2720.4,3.67581]
[1739992693628,0.7754,2721.1,2720.5,3.6757]
[1739992693935,0.7754,2721.1,2720.6,3.67565]
[1739992694350,0.7754,2721.1,2720.6,7.35123]
[1739992694644,4.45045,2721.1,2720.4,3.67589]
[1739992694845,4.45045,2721.1,2720.2,3.67612]
[1739992694846,5.29955397,2721.1,2720.2,3.67612]
[1739992695057,5.29955397,2721.1,2720.3,3.67594]
[1739992695258,8.97465397,2721.1,2720.4,3.67586]
[1739992695458,3.6752,2721.0,2720.3,3.67594]
[1739992695639,3.67527,2720.9,2720.1,3.67621]
[1739992695967,3.67547,2720.8,2720.1,7.35246]
[1739992696131,3.67547,2720.8,2720.2,3.67615]
[1739992696328,3.67547,2720.8,2720.0,3.0]
[1739992696555,0.79,2720.7,2719.8,3.67672]
[1739992696767,3.67594,2720.4,2719.8,3.67672]
[1739992697180,3.67594,2720.4,2719.7,3.67678]
[1739992697336,3.67622,2720.2,2719.6,3.677]
[1739992697532,0.7512,2720.3,2719.3,3.67738]
[1739992697533,3.6764,2720.1,2719.3,3.67738]
[1739992697733,3.67653,2720.0,2719.3,7.3547]
[1739992698134,0.7512,2719.9,2719.1,3.67763]
[1739992698370,3.67684,2719.8,2719.1,3.67763]
[1739992698576,7.3537,2719.8,2719.1,3.67763]
[1739992699177,3.67684,2719.8,2718.7,4.1031]
[1739992699391,1.19111992,2719.9,2719.1,3.67757]
[1739992699694,4.86781992,2719.9,2719.2,3.67747]
[1739992699986,0.71482625,2719.7,2719.2,3.67747]
[1739992700364,4.39177625,2719.7,2718.9,3.67787]
[1739992700691,0.71482625,2719.7,2718.9,0.953725]
[1739992700974,0.71482625,2719.7,2718.8,1.07814]
[1739992700975,0.71482625,2719.6,2718.8,1.07814]
[1739992701175,0.71482625,2719.6,2719.3,3.6774]
[1739992701375,0.71482625,2719.6,2719.4,3.67715]
[1739992701579,0.71482625,2719.6,2719.5,3.67714]
[1739992701949,0.71482625,2719.6,2719.2,3.67747]
[1739992702173,0.71482625,2719.6,2719.0,3.67773]
[1739992702537,0.71482625,2719.6,2719.2,3.67745]
[1739992703087,0.71482625,2719.6,2718.9,3.67782]
[1739992703446,0.71482625,2719.6,2719.0,3.67779]
[1739992703979,7.35444,2719.5,2718.8,3.67801]
[1739992704183,7.35444,2719.5,2718.8,7.35601]
[1739992704184,0.7621,2719.4,2718.8,7.35601]
[1739992704385,0.7621,2719.4,2718.8,8.201921]
[1739992704581,0.7621,2719.4,2718.6,0.293]
[1739992704582,0.7621,2719.4,2718.6,3.67826]
[1739992704748,4.43948,2719.4,2718.7,3.67814]
[1739992704949,0.7621,2719.4,2718.8,3.67799]
[1739992705171,0.7621,2719.4,2718.9,3.67793]
[1739992705345,0.7621,2719.4,2718.8,3.67799]
[1739992705542,3.67755,2719.2,2718.6,3.67827]
[1739992705743,3.67755,2719.2,2718.4,3.67854]
[1739992705744,3.67755,2719.2,2718.5,3.67845]
[1739992705984,3.67786,2719.0,2718.4,3.67854]
[1739992706288,0.7893,2718.9,2718.4,3.67859]
[1739992706846,1.50412625,2718.9,2718.1,3.67894]
[1739992707183,1.50412625,2718.9,2718.4,3.67858]
[1739992707370,5.18215625,2718.9,2718.2,4.046684]
[1739992707817,1.50412625,2718.9,2718.3,3.67876]
[1739992708286,5.18212625,2718.9,2718.3,3.67876]
[1739992708483,1.50412625,2718.9,2718.0,3.67908]
[1739992708715,3.95312633,2718.8,2718.0,3.67908]
[1739992708900,3.67877,2718.3,2717.6,3.67965]
[1739992709074,0.7858,2718.2,2717.6,3.67965]
[1739992709493,0.7858,2718.2,2717.6,3.67963]
[1739992709926,0.7858,2718.2,2717.8,3.67931]
[1739992710211,0.27490633,2718.1,2718.0,3.67904]
[1739992710413,0.27490633,2718.1,2717.9,3.6793]
[1739992711182,0.27490633,2718.1,2717.5,3.67976]
[1739992711384,0.27490633,2718.1,2718.0,3.67917]
[1739992711907,0.27490633,2718.1,2718.0,4.415017]
[1739992712285,0.43991992,2718.3,2718.2,3.6789]
[1739992713325,0.7599,2718.8,2718.2,3.6789]
[1739992714105,3.67829,2718.7,2717.8,3.67942]
[1739992714432,4.122249,2718.6,2717.9,3.67931]
[1739992714631,3.67843,2718.6,2717.9,3.67931]
[1739992714993,3.95218167,2718.6,2717.9,3.67931]
[1739992715229,0.27375167,2718.6,2718.2,3.67883]
[1739992715433,0.27375167,2718.6,2718.2,3.6789]
[1739992715630,0.27375167,2718.6,2718.1,3.67903]
[1739992716030,0.27375167,2718.6,2718.4,3.67861]
[1739992716237,0.27375167,2718.6,2718.3,3.67874]
[1739992716531,0.27375167,2718.5,2718.4,3.67863]
[1739992717536,0.8114,2720.0,2718.8,0.7647]
[1739992717860,0.8114,2720.0,2719.6,3.67696]
[1739992718068,0.8114,2720.0,2719.5,3.67714]
[1739992718231,0.8114,2720.0,2719.6,3.6769]
[1739992718957,0.8114,2720.0,2719.5,3.67706]
[1739992719655,0.8114,2720.0,2719.5,7.3541]
[1739992719827,0.7466,2720.0,2719.5,3.67704]
[1739992720264,0.7466,2720.0,2719.6,3.67693]
[1739992720469,0.43766701,2720.2,2719.6,0.735397]
[1739992720667,0.43766701,2720.2,2720.0,3.67635]
[1739992720869,0.43766701,2720.2,2719.8,3.67665]
[1739992721350,0.43766701,2720.2,2719.6,7.35386]
[1739992721567,0.43766701,2720.2,2719.8,3.67664]
[1739992721952,0.43766701,2720.2,2720.0,3.67645]
[1739992722166,0.38450374,2720.3,2720.0,3.67645]
[1739992722341,0.38450374,2720.3,2719.4,0.7647]
[1739992722528,0.38450374,2720.3,2720.2,3.6762]
[1739992722731,0.38450374,2720.3,2720.2,4.411452]
[1739992723177,0.38450374,2720.3,2720.1,3.67632]
[1739992723968,0.38450374,2720.3,2720.1,3.67626]
[1739992724271,0.38450374,2720.3,2720.2,3.6762]
[1739992727663,3.74e-06,2720.3,2720.2,11.90612187]
[1739992727868,0.7905,2721.3,2721.2,3.67484]
[1739992728336,0.7905,2721.3,2721.1,3.67498]
[1739992728538,0.7905,2721.3,2721.1,7.34988]
[1739992728734,0.7861,2721.6,2721.3,3.67464]
[1739992728938,0.7861,2721.6,2721.2,3.67482]
[1739992730361,0.7861,2721.6,2721.1,7.34982]
[1739992730578,0.7861,2721.6,2721.2,3.67481]
[1739992730988,1.23212,2721.6,2720.7,3.67543]
[1739992731152,3.67466,2721.4,2720.8,3.67537]
[1739992732376,3.67466,2721.4,2720.9,3.67523]
[1739992732542,3.67466,2721.4,2720.8,3.67537]
[1739992732743,0.813,2721.3,2720.6,3.67556]
[1739992732979,0.813,2721.3,2720.7,3.6754]
[1739992733158,0.813,2721.3,2720.8,3.67531]
[1739992733490,0.813,2721.3,2720.9,3.67523]
[1739992734387,0.813,2721.3,2720.7,3.67552]
[1739992734550,0.813,2721.3,2720.9,3.67515]
[1739992735162,0.813,2721.3,2720.4,0.778]
[1739992735451,0.813,2721.3,2721.0,3.67511]
[1739992735981,0.813,2721.3,2720.7,3.67544]
[1739992736168,0.813,2721.3,2720.4,0.778]
[1739992736169,4.48777,2721.3,2720.5,3.67579]
[1739992736369,3.67519,2721.0,2720.3,3.67597]
[1739992736758,3.67519,2721.0,2720.4,3.67591]
[1739992736958,3.67519,2721.0,2720.2,3.67615]
[1739992736959,0.8118,2720.9,2720.2,3.67615]
[1739992737183,0.8118,2720.9,2719.8,3.95114346]
[1739992737369,0.8118,2720.9,2720.3,3.67599]
[1739992737568,0.8118,2720.9,2720.3,7.35195]
[1739992737895,0.8118,2720.9,2720.1,3.67625]
[1739992738096,3.67562,2720.7,2720.0,3.67646]
[1739992738262,0.8057,2720.6,2720.2,3.67611]
[1739992738596,0.8057,2720.6,2720.3,3.67595]
[1739992738801,0.8057,2720.6,2720.2,3.67611]
[1739992739107,0.8057,2720.6,2720.0,7.35278]
[1739992739269,0.8057,2720.6,2720.1,3.67629]
[1739992739470,0.8057,2720.6,2720.2,3.67611]
[1739992740159,0.8057,2720.6,2720.1,3.67633]
[1739992740379,0.8057,2720.6,2720.3,3.67604]
[1739992740584,0.8057,2720.6,2720.1,3.67627]
[1739992740783,0.8057,2720.6,2720.1,7.35253]
[1739992741085,0.8057,2720.6,2720.3,3.676]
[1739992741286,0.8057,2720.6,2720.4,3.67588]
[1739992741695,0.8057,2720.6,2719.9,3.67653]
[1739992741891,1.621369,2720.6,2720.0,3.67647]
[1739992742114,1.621369,2720.6,2719.7,0.7843]
[1739992742280,0.8057,2720.6,2720.2,3.67612]
[1739992742489,0.8057,2720.6,2720.0,3.67638]
[1739992742685,0.8057,2720.6,2719.5,0.28066728]
[1739992742881,0.8057,2720.6,2720.0,3.67646]
[1739992743086,4.929505,2720.6,2719.8,3.67661]
[1739992743278,1.253825,2720.6,2719.8,3.67661]
[1739992743478,1.253825,2720.6,2719.5,3.95779728]
[1739992743479,1.253825,2720.6,2720.1,3.67631]
[1739992743818,3.67586,2720.5,2719.9,3.67656]
[1739992744023,0.7548,2720.5,2719.6,3.677]
[1739992744180,4.37684687,2720.6,2719.6,3.67694]
[1739992744181,0.7548,2720.1,2719.6,3.67694]
[1739992744380,0.7548,2720.1,2719.4,3.67719]
[1739992744723,0.7548,2720.1,2719.5,3.67713]
[1739992744879,1.197902,2720.1,2719.4,3.67727]
[1739992745086,3.67648,2720.0,2719.4,3.67727]
[1739992745306,3.67648,2720.0,2719.4,7.35448]
[1739992745524,3.67648,2720.0,2719.5,3.67714]
[1739992745923,3.67648,2720.0,2719.3,3.6773]
[1739992746097,3.67648,2720.0,2719.4,3.67726]
[1739992746297,3.67648,2720.0,2719.3,3.6773]
[1739992746298,4.38951113,2719.9,2719.3,3.6773]
[1739992746620,4.48274,2719.8,2718.5,0.826]
[1739992746791,4.48274,2719.8,2719.1,3.6776]
[1739992747120,0.7591,2719.7,2718.8,3.67806]
[1739992747307,3.67701,2719.6,2718.8,3.67797]
[1739992747509,3.67715,2719.5,2718.4,3.67854]
[1739992747715,3.92872187,2719.7,2718.5,3.6784]
[1739992747716,4.43663,2719.3,2718.5,3.6784]
[1739992747944,4.43663,2719.3,2718.6,3.67836]
[1739992748323,4.39035113,2719.2,2718.4,3.67854]
[1739992748524,3.67789,2719.0,2718.2,3.67882]
[1739992748857,0.7591,2719.1,2718.0,3.6791]
[1739992748858,4.45775,2718.8,2718.0,3.6791]
[1739992749062,0.7796,2718.8,2718.0,3.67909]
[1739992749355,0.7796,2718.8,2718.2,3.67889]
[1739992749854,4.45773,2718.8,2718.0,3.67907]
[1739992750055,0.27380727,2718.7,2718.0,3.67907]
[1739992750263,0.27380727,2718.7,2717.7,3.67951]
[1739992750457,0.27380727,2718.7,2718.6,3.67836]
[1739992751559,1.13e-06,2718.8,2718.6,3.67836]
[1739992751759,1.13e-06,2719.3,2719.2,3.67755]
[1739992753860,0.8118,2719.8,2719.4,3.67717]
[1739992754865,4.48861,2719.8,2719.0,3.67777]
[1739992755053,4.48861,2719.8,2719.1,3.67759]
[1739992755256,0.448861,2719.7,2719.2,3.67744]
[1739992755453,0.8118,2719.8,2719.4,3.67725]
[1739992755671,0.8118,2719.8,2719.2,3.67744]
[1739992756028,0.8118,2719.8,2719.4,3.67718]
[1739992756370,0.8118,2719.8,2719.5,3.67706]
[1739992756538,0.8118,2719.8,2719.6,3.67699]
[1739992756726,0.8118,2719.8,2719.7,3.67687]
[1739992756931,3.67514,2721.0,2719.7,3.67687]
[1739992756932,0.7514,2720.4,2720.3,3.67606]
[1739992757243,0.7514,2721.2,2720.5,7.35141]
[1739992757453,0.7514,2721.2,2720.6,3.67555]
[1739992757634,0.7514,2721.2,2720.7,3.67544]
[1739992758040,0.7514,2721.2,2720.8,3.67534]
[1739992759063,0.7514,2721.2,2721.0,3.6751]
[1739992759364,3.67398,2721.9,2721.2,3.67481]
[1739992759569,3.67398,2721.9,2721.0,3.6751]
[1739992759570,3.67418,2721.7,2721.0,3.67503]
[1739992759739,0.445028,2721.6,2721.0,3.67503]
[1739992760165,0.445028,2721.6,2721.0,7.35006]
[1739992760380,0.445028,2721.6,2721.0,3.67503]
[1739992760684,4.45068,2721.4,2720.8,3.6753]
[1739992760979,4.45068,2721.4,2720.7,3.67552]
[1739992761279,1.6331168,2721.4,2720.8,3.67525]
[1739992761676,3.67472,2721.3,2720.7,3.67552]
[1739992762979,0.8146,2721.1,2720.6,3.67558]
[1739992763182,0.8146,2721.1,2720.7,3.67544]
[1739992763400,0.8146,2721.1,2720.8,3.67538]
[1739992764024,0.8146,2721.1,2720.8,3.6753]
[1739992764309,0.8146,2721.1,2720.8,3.67529]
[1739992765006,0.8146,2721.1,2720.3,0.0992]
[1739992765320,0.8146,2721.1,2720.3,3.77515]
[1739992765501,3.67518,2721.0,2720.4,3.6759]
[1739992765676,3.67539,2720.8,2720.3,0.0992]
[1739992765877,0.8212,2720.7,2720.3,0.0992]
[1739992766308,0.8212,2720.7,2720.3,3.77524]
[1739992766517,0.8212,2720.7,2720.3,0.0992]
[1739992766829,4.49673,2720.7,2720.3,0.0992]
[1739992767111,1.638412,2720.7,2720.3,0.0992]
[1739992767406,0.8212,2720.7,2720.3,0.0992]
[1739992768114,4.49672,2720.7,2720.3,0.0992]
[1739992768908,0.8212,2720.7,2720.3,0.0992]
[1739992769114,7.60348187,2721.3,2720.3,0.0992]
[1739992769115,0.8161,2721.3,2720.3,0.0992]
[1739992769322,0.8161,2721.3,2720.8,3.67533]
[1739992769477,0.8161,2721.3,2720.9,3.67518]
[1739992769879,0.8161,2721.3,2720.6,3.67556]
[1739992770084,0.27377784,2721.2,2720.6,0.735149]
[1739992770297,0.27377784,2721.2,2720.3,1.17202]
[1739992770298,0.27377784,2721.2,2720.7,3.67539]
[1739992771051,0.27377784,2721.2,2720.3,3.77517]
[1739992771052,0.8042,2721.1,2720.3,3.77517]
[1739992771202,0.8042,2721.1,2720.6,3.67561]
[1739992771397,4.47926,2721.1,2720.5,3.67568]
[1739992771699,3.94873784,2721.2,2720.3,3.77518]
[1739992771700,0.811,2720.9,2720.3,0.0992]
[1739992771907,0.811,2720.6,2720.3,0.0992]
[1739992772805,4.48666,2720.6,2720.3,0.0992]
[1739992773033,3.67586,2720.5,2720.3,0.0992]
[1739992774001,0.811,2720.6,2720.3,0.0992]
[1739992777459,4.48667,2720.6,2720.3,0.0992]
[1739992777751,0.27380043,2720.5,2720.3,0.0992]
[1739992778934,3.94971043,2720.5,2720.3,0.0992]
[1739992779142,3.67593,2720.4,2720.3,0.0992]
[1739992779324,3.94973043,2720.4,2720.3,0.0992]
[1739992779739,0.27380043,2720.4,2720.3,0.0992]
[1739992780912,3.94961043,2720.5,2720.3,0.0992]
[1739992781112,0.27380043,2720.5,2720.3,0.0992]
[1739992782855,3.94959043,2720.5,2720.3,0.0992]
[1739992783053,3.67593,2720.4,2720.3,0.0992]
[1739992783208,3.94973043,2720.4,2720.3,0.0992]
[1739992784713,8.6527523,2720.4,2720.3,0.0992]
[1739992784914,9.88560853,2720.4,2720.3,0.0992]
[1739992785864,13.72060853,2720.4,2720.3,0.0992]
[1739992786411,13.72060853,2720.4,2718.9,4.47341]
[1739992786412,4.48106,2719.5,2718.9,4.47341]
[1739992786931,4.48106,2719.5,2718.7,3.67818]
[1739992787127,3.67755,2719.2,2718.5,3.67839]
[1739992787363,3.67755,2719.2,2718.3,4.43507]
[1739992787364,3.6777,2719.1,2718.3,4.43507]
[1739992787572,0.7527,2719.0,2718.0,4.43556]
[1739992787867,3.67809,2718.8,2718.0,4.43556]
[1739992788018,8.35929187,2719.0,2718.2,3.67888]
[1739992788217,3.67817,2718.8,2718.2,3.67888]
[1739992788417,3.67817,2718.8,2718.1,3.67903]
[1739992788758,4.55076469,2718.9,2718.2,3.67888]
[1739992788956,0.7527,2719.0,2718.2,3.67888]
[1739992789161,0.7527,2719.0,2718.4,3.67859]
[1739992789395,0.27380043,2718.7,2718.2,3.67882]
[1739992790585,0.27380043,2718.8,2718.3,3.67876]
[1739992790795,0.27380043,2718.8,2718.2,7.35764]
[1739992791096,0.27380043,2718.8,2718.2,3.67882]
[1739992791303,0.27380043,2718.8,2718.4,3.67855]
[1739992791586,0.27380043,2718.8,2718.2,3.67881]
[1739992792347,1.11203547,2718.8,2718.2,3.67881]
[1739992792888,8.46834547,2718.8,2718.1,3.67897]
[1739992793051,4.79017547,2718.8,2718.1,3.67897]
[1739992793254,1.11203547,2718.8,2718.0,4.43548]
[1739992793562,0.27380043,2718.7,2718.2,3.67881]
[1739992794501,3.95215043,2718.7,2718.0,3.67908]
[1739992794653,3.95215043,2718.7,2718.1,3.67901]
[1739992794995,0.27380043,2718.7,2718.2,3.6788]
[1739992795162,0.27380043,2718.7,2717.7,0.7893]
[1739992795372,0.27380043,2718.7,2718.4,3.67853]
[1739992795583,0.27380043,2718.7,2718.1,0.8215]
[1739992796050,0.27380043,2718.7,2718.4,3.67862]
[1739992796247,0.27380043,2718.7,2718.4,3.67863]
[1739992796450,0.27380043,2718.9,2718.5,3.67842]
[1739992796677,0.27380043,2718.9,2718.6,7.35661]
[1739992797188,0.27380043,2718.9,2718.8,6.67809]
[1739992797893,0.8324,2719.6,2719.0,3.67775]
[1739992798188,0.8324,2719.6,2719.1,3.67755]
[1739992798373,0.8324,2719.6,2718.9,3.67782]
[1739992798776,0.8324,2719.6,2719.0,3.67773]
[1739992798980,0.8324,2719.6,2718.8,6.67798]
[1739992799191,0.8324,2719.2,2718.8,3.67807]
[1739992800088,0.8324,2719.2,2718.8,3.67801]
[1739992800392,0.8324,2719.2,2718.7,3.67821]
[1739992800591,0.8324,2719.2,2718.4,3.0]
[1739992800904,0.8324,2719.2,2718.4,3.6785]
[1739992801073,4.76112187,2719.0,2718.0,4.44459]
[1739992801257,0.8324,2718.5,2717.9,3.67923]
[1739992801457,0.8324,2718.5,2718.0,3.0]
[1739992801723,0.8324,2718.5,2717.8,3.67937]
[1739992801876,1.283482,2718.5,2717.9,3.67928]
[1739992802059,4.961992,2718.5,2717.9,3.67928]
[1739992802454,1.283482,2718.5,2718.0,3.6791]
[1739992802659,3.92872187,2719.0,2717.8,3.6794]
[1739992802660,0.7666,2719.0,2717.8,3.92872187]
[1739992802855,0.7666,2719.0,2718.8,3.67809]
[1739992803290,0.7666,2719.0,2718.8,7.35618]
[1739992803462,0.8291,2719.3,2718.8,0.735618]
[1739992803658,0.8291,2719.3,2718.3,0.7512]
[1739992803900,3.67755,2719.2,2718.3,0.7512]
[1739992804105,4.50662,2719.3,2718.5,3.67836]
[1739992804424,0.8291,2719.3,2718.9,3.67795]
[1739992804558,0.27395897,2719.2,2718.9,3.67795]
[1739992804753,0.27395897,2719.2,2718.6,3.67828]
[1739992804976,0.27395897,2719.2,2719.0,3.6778]
[1739992805309,0.27395897,2719.2,2718.9,3.67788]
[1739992805610,0.27395897,2719.2,2719.1,3.67768]
[1739992806094,0.7965,2719.6,2719.2,3.67748]
[1739992806295,1.543825,2719.6,2719.2,3.67754]
[1739992806507,1.543825,2719.6,2719.0,3.67773]
[1739992806508,0.7965,2719.6,2719.0,3.67773]
[1739992806660,0.7965,2719.6,2719.1,3.67757]
[1739992806862,0.7965,2719.6,2719.2,3.67752]
[1739992807379,0.7965,2719.6,2719.3,3.6774]
[1739992807575,0.27414651,2719.5,2719.2,3.67752]
[1739992807906,0.27414651,2719.5,2719.4,3.67728]
[1739992808512,0.27414651,2719.5,2719.3,3.6774]
[1739992808868,0.27414651,2719.5,2719.4,3.67728]
[1739992809484,0.27414651,2719.5,2719.1,3.67759]
[1739992809683,0.27414651,2719.5,2719.2,3.67744]
[1739992810587,0.27414651,2719.5,2719.0,3.67772]
[1739992810789,3.67691,2719.7,2719.0,7.35544]
[1739992811088,3.67717,2719.5,2718.8,7.35602]
[1739992811291,4.47953,2719.6,2719.0,3.67781]
[1739992811609,4.47947,2719.6,2718.8,3.678]
[1739992811779,0.4847206,2719.5,2719.0,3.67781]
[1739992811987,0.4847206,2719.5,2719.0,7.35562]
[1739992812171,0.4847206,2719.5,2719.0,3.67775]
[1739992812369,0.8024,2719.6,2719.3,3.67734]
[1739992812568,3.67661,2719.9,2719.3,3.67732]
[1739992812773,0.8106,2720.0,2719.0,0.8078]
[1739992812774,0.8323,2720.3,2719.2,0.55]
[1739992813019,0.8323,2720.9,2720.5,3.67576]
[1739992813210,0.8323,2720.9,2719.4,3.787]
[1739992813211,0.8323,2720.9,2720.3,3.67597]
[1739992813416,0.8323,2720.9,2720.3,3.67598]
[1739992813572,3.67566,2720.6,2719.9,3.67652]
[1739992813775,0.8323,2720.4,2719.6,0.787]
[1739992814010,0.8323,2720.4,2720.1,3.67621]
[1739992814211,0.8323,2720.7,2720.2,3.6762]
[1739992814418,0.8323,2720.7,2720.3,3.67606]
[1739992814932,0.8323,2720.7,2720.2,3.67615]
[1739992815239,7.75e-06,2720.8,2720.7,7.50712]
[1739992815899,4.72752187,2721.7,2720.7,0.8316]
[1739992816234,0.7988,2721.7,2721.0,3.67511]
[1739992816533,0.7988,2721.7,2721.1,3.67497]
[1739992816715,1.62851333,2721.7,2721.1,3.67497]
[1739992817234,0.7988,2721.7,2721.3,3.6747]
[1739992817628,0.7988,2721.7,2721.1,3.67497]
[1739992817936,0.7988,2721.7,2721.1,7.34986]
[1739992818145,0.7988,2721.7,2721.2,3.67476]
[1739992818341,0.7988,2721.7,2721.3,3.67469]
[1739992818631,0.7988,2721.7,2721.1,3.67489]
[1739992818835,0.7988,2721.7,2721.1,7.34978]
[1739992819043,0.7988,2721.7,2721.2,3.67471]
[1739992819535,4.47299,2721.7,2721.1,3.67489]
[1739992819739,3.67432,2721.6,2720.9,3.67522]
[1739992819938,0.7587,2721.3,2720.7,3.67547]
[1739992820231,4.4335,2721.3,2720.5,3.67571]
[1739992820436,8.10833,2721.3,2720.5,3.67571]
[1739992820646,5.244333,2721.3,2720.5,3.67571]
[1739992820808,3.67548,2720.8,2720.1,4.50535]
[1739992821011,0.7587,2720.7,2720.1,3.67625]
[1739992821217,0.7587,2720.7,2720.1,4.043875]
[1739992821404,0.7587,2720.7,2720.1,3.67624]
[1739992821799,0.7587,2720.7,2720.3,3.67597]
[1739992822042,0.8223,2721.1,2720.5,3.67571]
[1739992822214,0.8223,2721.1,2720.5,7.35139]
[1739992822412,0.8223,2721.1,2720.6,3.67557]
[1739992822636,0.8223,2721.1,2720.5,3.67568]
[1739992822820,3.8223,2721.1,2720.5,3.67568]
[1739992823397,3.8223,2721.1,2720.6,3.67558]
[1739992823576,4.20453,2721.1,2720.5,3.67568]
[1739992823938,3.67512,2721.0,2720.3,3.67597]
[1739992824181,4.20453,2721.1,2720.0,3.67642]
[1739992824365,4.20453,2721.1,2720.5,3.67569]
[1739992824573,4.20453,2721.1,2720.6,3.67562]
[1739992824754,7.87951,2721.1,2720.5,3.67569]
[1739992825157,7.87951,2721.1,2720.3,3.67595]